lending/lending_fUSD_20260124
["ID","MTS","AMOUNT","RATE_DAILY","PERIOD"]
[403299426,1769292641584,-500.0,0.00017899,2]
[403299428,1769292641594,-1868.0,0.000179,2]
[403299430,1769292641604,-448226.0140538,0.000179,2]
[403299435,1769292641655,-551773.9859462,0.000179,2]
[403299437,1769292641664,-1227.5,0.000179,2]
[403299439,1769292641673,-1227.5,0.000179,2]
[403299441,1769292641683,-1227.5,0.000179,2]
[403299443,1769292641692,-1250.16,0.000179,2]
[403299445,1769292641701,-221.2148683,0.00017998,2]
[403299447,1769292641710,-3082.0260903,0.00017998,2]
[403299449,1769292641719,-5824.4248,0.00017998,2]
[403299451,1769292641728,-6115.735409,0.00017998,2]
[403299453,1769292641737,-33315.7957332,0.00017998,2]
[403299455,1769292641747,-300.0,0.00017999,2]
[403299457,1769292641755,-300.0,0.00017999,2]
[403299459,1769292641764,-300.0,0.00017999,2]
[403299461,1769292641773,-300.0,0.00017999,2]
[403299463,1769292641783,-300.0,0.00017999,2]
[403299465,1769292641791,-300.0,0.00017999,2]
[403299467,1769292641800,-1980151.81176372,0.00018,2]
[403299469,1769292641811,-2096.93006456,0.00018,2]
[403299471,1769292641827,-13441.71464927,0.00018,2]
[403299474,1769292641840,-8871.68070531,0.00018,2]
[403299476,1769292641851,-382588.0,0.00018,2]
[403299478,1769292641870,-286424.39598656,0.00018,2]
[403299486,1769292641939,-839.15,0.00018,2]
[403299488,1769292641951,-7301.2,0.00018,2]
[403299491,1769292641962,-1428.25911576,0.00018,2]
[403299497,1769292642013,-2142.29035187,0.00018,2]
[403299512,1769292642139,-48725.7977555,0.00018,2]
[403299515,1769292642150,-27115.5364935,0.00018,2]
[403299818,1769292645022,-36.35395907,0.00018,2]
[403299861,1769292645422,-10621.31783042,0.00018,2]
[403299886,1769292645646,-151.0,0.00016526,2]
[403299888,1769292645656,-7203.62155801,0.00018,2]
[403299895,1769292645710,-616.41039104,0.00018,2]
[403299904,1769292645783,-5570.45453968,0.00018,2]
[403303205,1769293831620,-300.0,0.00014358,2]
[403303206,1769293831629,-1200.0,0.00014358,2]
[403303207,1769293831639,-300.0,0.00014358,2]
[403303208,1769293831648,-212.78354579,0.00014359,2]
[403303209,1769293831659,-287.21645421,0.00014359,2]
[403303210,1769293831668,-195.0,0.00014359,2]
[403303211,1769293831678,-10.20131881,0.00014359,2]
[403303212,1769293831689,-641.28142672,0.00014359,2]
[403303213,1769293831719,-10495.14725447,0.00014359,2]
[403303215,1769293831728,-2049.35622083,0.00015,2]
[403303217,1769293831737,-688.42139918,0.00015,2]
[403303219,1769293831748,-526.67039224,0.00015,2]
[403303221,1769293831757,-581.3,0.00015645,2]
[403303223,1769293831766,-166.66,0.00015683,2]
[403303224,1769293831787,-420.0,0.00015725,2]
[403303226,1769293831807,-2544.20056881,0.00015794,2]
[403303228,1769293831819,-500.0,0.00015794,2]
[403303231,1769293831829,-689.93257127,0.00015794,2]
[403303234,1769293831840,-195.0,0.00015794,2]
[403303236,1769293831851,-170.04,0.00015805,2]
[403303240,1769293831862,-151.0,0.00015856,2]
[403303242,1769293831873,-200.0,0.00016,2]
[403303245,1769293831884,-166.66,0.00016013,2]
[403303247,1769293831893,-216.4,0.00016033,2]
[403303248,1769293831902,-5140.12,0.00016123,2]
[403303250,1769293831913,-204.42544579,0.00016198,2]
[403303253,1769293831923,-500.0,0.00016198,2]
[403303254,1769293831933,-166.13113528,0.00016198,2]
[403303257,1769293831943,-336.70858326,0.00016198,2]
[403303259,1769293831953,-164.13925768,0.00016244,2]
[403303261,1769293831964,-166.66,0.00016344,2]
[403303263,1769293831974,-500.0,0.00016438,2]
[403303265,1769293831986,-500.0,0.00016438,2]
[403303266,1769293831996,-500.0,0.00016438,2]
[403303269,1769293832006,-500.0,0.00016438,2]
[403303270,1769293832015,-540.95448317,0.00016438,2]
[403303273,1769293832024,-151.0,0.00016438,2]
[403303275,1769293832032,-166.66,0.00016674,2]
[403303277,1769293832042,-457.17,0.000167,2]
[403303279,1769293832051,-152.0,0.00016892,3]
[403303280,1769293832060,-166.66,0.00017004,2]
[403303282,1769293832069,-1537.13,0.00017033,2]
[403303284,1769293832078,-200.0,0.00017034,2]
[403303286,1769293832087,-164.13925767,0.00017072,2]
[403303289,1769293832096,-1000.0,0.00017099,2]
[403303290,1769293832105,-3210.0,0.00017099,2]
[403303292,1769293832114,-151.0,0.00017099,2]
[403303294,1769293832124,-151.0,0.00017099,2]
[403303296,1769293832132,-151.0,0.00017099,2]
[403303298,1769293832143,-151.0,0.00017099,2]
[403303300,1769293832153,-151.0,0.00017099,2]
[403303302,1769293832162,-151.0,0.00017099,2]
[403303304,1769293832171,-151.0,0.00017099,2]
[403303307,1769293832185,-151.0,0.00017099,2]
[403303309,1769293832195,-151.0,0.00017099,2]
[403303311,1769293832204,-151.0,0.00017099,2]
[403303312,1769293832213,-151.0,0.00017099,2]
[403303315,1769293832223,-180.0,0.00017221,2]
[403303316,1769293832232,-1000.0,0.0001726,2]
[403303318,1769293832243,-166.66,0.00017334,2]
[403303321,1769293832260,-6546.59,0.00017487,2]
[403303323,1769293832271,-1000.0,0.00017534,2]
[403303325,1769293832281,-581.3,0.000176,2]
[403303327,1769293832291,-1536.117,0.00017612,2]
[403303329,1769293832300,-199.86017172,0.00017612,2]
[403303331,1769293832309,-168.0,0.00017708,2]
[403303333,1769293832319,-168.0,0.00017788,2]
[403303335,1769293832330,-1000.0,0.00017808,2]
[403303338,1769293832339,-168.0,0.00017876,2]
[403303340,1769293832349,-164.13925767,0.000179,2]
[403303341,1769293832359,-168.0,0.00017973,2]
[403303343,1769293832370,-2477.4307189,0.00017974,2]
[403303346,1769293832380,-1291.92406411,0.00017974,2]
[403303348,1769293832393,-3294.87749269,0.00017974,2]
[403303350,1769293832402,-1589.5858741,0.00017974,2]
[403303352,1769293832411,-1008.959,0.00017999,2]
[403303354,1769293832420,-300.0,0.00017999,2]
[403303356,1769293832430,-300.0,0.00017999,2]
[403303358,1769293832439,-300.0,0.00017999,2]
[403303360,1769293832449,-300.0,0.00017999,2]
[403303362,1769293832459,-300.0,0.00017999,2]
[403303364,1769293832468,-300.0,0.00017999,2]
[403303366,1769293832477,-1295.0,0.00018,2]
[403303368,1769293832487,-41411.99457842,0.00018,2]
[403303370,1769293832498,-1482.9015306,0.00018,2]
[403303372,1769293832509,-1015.1628788,0.00018,2]
[403303379,1769293832568,-525.56092805,0.00018,2]
[403303382,1769293832579,-9081.0,0.00018,2]
[403303384,1769293832591,-1932.64807024,0.00018,2]
[403303386,1769293832602,-899.86519061,0.00018,2]
[403303398,1769293832703,-522.04790989,0.00018,2]
[403303401,1769293832715,-269.43699996,0.00018,2]
[403303403,1769293832726,-864.08449454,0.00018,2]
[403303614,1769293837560,-53705.1862118,0.00018,2]
[403303615,1769293837572,-1944.77462014,0.00018,2]
[403303616,1769293837584,-541.83060645,0.00018,2]
[403303617,1769293837783,-272596.46418528,0.00018,2]
[403303619,1769293837852,-1056.89806984,0.00018,2]
[403303852,1769293840235,-259.39905185,0.00018,2]
[403303856,1769293840268,-1981951.81176372,0.00018,2]
[403303867,1769293840355,-5222.78164875,0.00018,2]
[403303869,1769293840365,-421.14923811,0.00018,2]
[403303926,1769293840878,-1341.33423444,0.00018,2]
[403304313,1769293845061,-151.0,0.00017727,2]
[403304315,1769293845071,-421.37,0.000179,2]
[403304317,1769293845082,-737.98960783,0.000179,2]
[403304319,1769293845094,-295.60870062,0.000179,2]
[403304326,1769293845148,-827.7521628,0.000179,2]
[403304328,1769293845158,-1323787.016163,0.00018,2]
[403304341,1769293845265,-275.71760038,0.00018,2]
[403304373,1769293845559,-28996.76090095,0.00018,2]
[403304382,1769293845630,-1873.655312,0.00018,2]
[403304416,1769293845937,-1827.72135232,0.00018,2]
[403305428,1769293867925,5533.0,0.000136,5]
[403305443,1769294138898,-300.0,0.00015912,2]
[403305444,1769294138926,-1200.0,0.00015912,2]
[403305451,1769294161351,300.0,0.00015912,2]
[403305455,1769294181727,158.87,0.00013591,2]
[403305456,1769294221836,300.0,0.00015912,2]
[403305476,1769294401731,300.0,0.00015912,2]
[403305479,1769294434141,1127.67217826,0.00015813,2]
[403305480,1769294434165,551.16170028,0.00015813,2]
[403305540,1769294840724,150.0,0.000135,3]
[403305615,1769295032088,-569.65,0.00015703,2]
[403305617,1769295032098,-569.65,0.00015703,2]
[403305619,1769295032107,-569.65,0.00015703,2]
[403305621,1769295032115,-569.65,0.00015703,2]
[403305623,1769295032125,-569.65,0.00015703,2]
[403305625,1769295032134,-223.0,0.00015712,2]
[403305627,1769295032143,-1769.41892185,0.00015713,2]
[403305632,1769295032182,-665.86849656,0.00015713,2]
[403305635,1769295032193,-1201.88452238,0.00015713,2]
[403305644,1769295032267,-300.0,0.00015712,2]
[403305646,1769295032278,-2188.79487899,0.00015713,2]
[403305651,1769295032316,-4910.06818058,0.00015713,2]
[403305653,1769295032328,-4443.93547762,0.00015713,2]
[403305659,1769295032371,-305.85181942,0.00015713,2]
[403305661,1769295032382,-414.63000001,0.00015713,2]
[403305663,1769295032392,-2436.20816267,0.00015713,2]
[403305665,1769295032403,-555.26888642,0.00015713,2]
[403305668,1769295032414,-741.79478212,0.00015713,2]
[403305670,1769295032425,-999.0,0.00015713,2]
[403305672,1769295032436,-449.6702639,0.00015713,2]
[403306209,1769295037840,-511.560785,0.00015713,2]
[403306212,1769295037851,-1570.19098888,0.00015713,2]
[403306222,1769295037942,-818.17425042,0.00015713,2]
[403306224,1769295037953,-2542.91899349,0.00015713,2]
[403306226,1769295037964,-1187.75083997,0.00015713,2]
[403306247,1769295038151,-401.616215,0.00015713,2]
[403306474,1769295040272,-971885.39353472,0.00015713,2]
[403306476,1769295040282,-35944.8445,0.00015813,2]
[403306478,1769295040291,-500.0,0.00015904,2]
[403306480,1769295040300,-151.0,0.00015904,2]
[403306482,1769295040309,-151.0,0.00016158,2]
[403306484,1769295040318,-151.0,0.00016184,2]
[403306486,1769295040327,-151.0,0.00016209,2]
[403306488,1769295040335,-11517.45,0.00016613,2]
[403306490,1769295040344,-7871.65,0.00016774,2]
[403306492,1769295040353,-470.69316646,0.00016887,2]
[403306494,1769295040363,-1082.27020347,0.00016887,2]
[403306496,1769295040372,-454.65,0.00016953,2]
[403306498,1769295040381,-150.0,0.0001697,2]
[403306500,1769295040390,-250.0,0.00017,2]
[403306502,1769295040399,-200.0,0.00017032,2]
[403306504,1769295040408,-250.0,0.00017099,2]
[403306506,1769295040417,-250.0,0.00017099,2]
[403306508,1769295040426,-500.0,0.00017099,2]
[403306511,1769295040435,-646.65982734,0.00017099,2]
[403306514,1769295040443,-250.0,0.00017099,2]
[403306516,1769295040452,-250.0,0.00017099,2]
[403306518,1769295040462,-250.0,0.00017099,2]
[403306520,1769295040471,-500.0,0.00017099,2]
[403306522,1769295040479,-151.0,0.00017099,2]
[403306524,1769295040489,-151.0,0.00017099,2]
[403306526,1769295040498,-151.0,0.00017099,2]
[403306528,1769295040506,-250.0,0.00017099,2]
[403306530,1769295040515,-151.0,0.00017099,2]
[403306532,1769295040524,-500.0,0.00017099,2]
[403306534,1769295040533,-151.0,0.00017099,2]
[403306536,1769295040542,-151.0,0.00017099,2]
[403306538,1769295040551,-151.0,0.00017099,2]
[403306540,1769295040561,-151.0,0.00017099,2]
[403306542,1769295040570,-151.0,0.00017099,2]
[403306544,1769295040579,-151.0,0.00017099,2]
[403306546,1769295040588,-151.0,0.00017099,2]
[403306548,1769295040597,-514.84070869,0.00017099,2]
[403306550,1769295040606,-250.0,0.00017099,2]
[403306552,1769295040614,-250.0,0.00017099,2]
[403306554,1769295040623,-1000.0,0.0001726,2]
[403306556,1769295040632,-300.0,0.00017395,2]
[403306558,1769295040642,-1228.894,0.00017487,2]
[403306560,1769295040656,-173.99,0.00017496,2]
[403306562,1769295040666,-1999.0,0.00017534,2]
[403306564,1769295040675,-454.65,0.00017589,2]
[403306566,1769295040684,-150.29270044,0.00017726,2]
[403306568,1769295040695,-150.0,0.00017726,2]
[403306570,1769295040704,-150.9659613,0.00017726,2]
[403306572,1769295040713,-29472.0,0.00017774,2]
[403306574,1769295040722,-432.95818,0.0001782,2]
[403306576,1769295040731,-432.95817,0.0001782,2]
[403306578,1769295040740,-432.95818,0.0001782,2]
[403306580,1769295040749,-432.95818,0.0001782,2]
[403306582,1769295040758,-300.0,0.00017999,2]
[403306584,1769295040769,-300.0,0.00017999,2]
[403306586,1769295040778,-300.0,0.00017999,2]
[403306588,1769295040787,-300.0,0.00017999,2]
[403306590,1769295040796,-1858.0730391,0.00017999,2]
[403306592,1769295040806,-300.0,0.00017999,2]
[403306594,1769295040815,-160.475,0.00017999,2]
[403306596,1769295040824,-1237.0,0.00018,2]
[403306598,1769295040833,-345452.2900182,0.00018,2]
[403306600,1769295040842,-304618.15462749,0.00018,2]
[403306602,1769295040852,-253060.74176651,0.00018,2]
[403306605,1769295040864,-4800.3890111,0.00018,2]
[403306876,1769295044628,-294.91895634,0.00015713,2]
[403307027,1769295046022,-125.16797486,0.00015713,2]
[403307029,1769295046032,-420.0869312,0.00015956,2]
[403307032,1769295046041,-516.45816041,0.00018,2]
[403307033,1769295046094,-2020.869312,0.00018,2]
[403307041,1769295046164,-300.57795713,0.00018,2]
[403307043,1769295046175,-2180.0,0.00018,2]
[403309507,1769296029128,-300.0,0.00013885,2]
[403309508,1769296029153,-150.03638354,0.00013886,2]
[403309559,1769296232020,-9123.7316167,0.00013886,2]
[403309586,1769296238424,-569.93199976,0.00013886,2]
[403309588,1769296238434,-166.66,0.0001474,2]
[403309590,1769296238443,-1235.86610554,0.00014978,2]
[403309592,1769296238452,-166.66,0.0001505,2]
[403309594,1769296238461,-166.66,0.0001536,2]
[403309596,1769296238470,-500.0,0.00015496,2]
[403309598,1769296238479,-537.63781574,0.00015496,2]
[403309600,1769296238488,-1336.848,0.00015497,2]
[403309601,1769296238497,-253.36453144,0.00015497,2]
[403309602,1769296238510,-62064.01602499,0.00015613,2]
[403309604,1769296238522,-595.0468497,0.00015613,2]
[403309606,1769296238534,-2702.99998823,0.00015613,2]
[403309615,1769296238605,-539.93551002,0.00015613,2]
[403309622,1769296238659,-193811.57284729,0.00015613,2]
[403309756,1769296240110,-33443.53997977,0.00015613,2]
[403309757,1769296240121,-166.66,0.00015671,2]
[403309758,1769296240130,-1136.87531644,0.00015704,2]
[403309759,1769296240140,-500.0,0.00015712,2]
[403309761,1769296240149,-500.0,0.00015712,2]
[403309763,1769296240158,-500.0,0.00015712,2]
[403309765,1769296240168,-176.42004889,0.00015712,2]
[403309767,1769296240178,-200.0,0.00015804,2]
[403309769,1769296240187,-500.0,0.00015804,2]
[403309771,1769296240198,-243.40767629,0.00015804,2]
[403309773,1769296240207,-200.0,0.00015804,2]
[403309775,1769296240216,-500.0,0.00015804,2]
[403309777,1769296240226,-200.0,0.00015804,2]
[403309779,1769296240236,-500.0,0.00015804,2]
[403309781,1769296240245,-500.0,0.00015804,2]
[403309783,1769296240254,-500.0,0.00015804,2]
[403309785,1769296240263,-500.0,0.00015804,2]
[403309787,1769296240273,-500.0,0.00015804,2]
[403309789,1769296240282,-500.0,0.00015804,2]
[403309791,1769296240291,-500.0,0.00015804,2]
[403309793,1769296240301,-500.0,0.00015804,2]
[403309795,1769296240311,-500.0,0.00015804,2]
[403309797,1769296240320,-500.0,0.00015804,2]
[403309799,1769296240329,-151.0,0.00015804,2]
[403309801,1769296240338,-151.0,0.00015804,2]
[403309803,1769296240349,-151.0,0.00015804,2]
[403309805,1769296240358,-151.0,0.00015804,2]
[403309807,1769296240367,-151.0,0.00015804,2]
[403309809,1769296240378,-151.0,0.00015804,2]
[403309811,1769296240387,-151.0,0.00015804,2]
[403309813,1769296240396,-151.0,0.00015804,2]
[403309815,1769296240405,-151.0,0.00015804,2]
[403309817,1769296240414,-500.0,0.00015804,2]
[403309819,1769296240423,-151.0,0.00015804,2]
[403309821,1769296240432,-500.0,0.00015804,2]
[403309823,1769296240441,-151.0,0.00015804,2]
[403309825,1769296240450,-500.0,0.00015804,2]
[403309827,1769296240460,-500.0,0.00015804,2]
[403309829,1769296240469,-500.0,0.00015804,2]
[403309831,1769296240478,-500.0,0.00015804,2]
[403309833,1769296240488,-500.0,0.00015804,2]
[403309835,1769296240497,-500.0,0.00015804,2]
[403309837,1769296240507,-500.0,0.00015804,2]
[403309839,1769296240516,-539.37264021,0.00015804,2]
[403309841,1769296240525,-304.94,0.00015804,2]
[403309843,1769296240534,-500.0,0.00015812,2]
[403309845,1769296240544,-340.00202205,0.00015812,2]
[403309847,1769296240553,-501.3862088,0.00015812,2]
[403309849,1769296240562,-500.0,0.00015812,2]
[403309851,1769296240572,-500.0,0.00015812,2]
[403309853,1769296240581,-500.0,0.00015812,2]
[403309855,1769296240590,-292.42921136,0.00015812,2]
[403309857,1769296240599,-500.0,0.00015812,2]
[403309859,1769296240608,-500.0,0.00015812,2]
[403309861,1769296240618,-540.08705783,0.00015812,2]
[403309863,1769296240627,-566.25672158,0.00015812,2]
[403309865,1769296240637,-217.98,0.00015812,2]
[403309867,1769296240646,-500.0,0.00015812,2]
[403309869,1769296240656,-500.0,0.00015812,2]
[403309872,1769296240665,-500.0,0.00015812,2]
[403309874,1769296240675,-368.70990999,0.00015812,2]
[403309875,1769296240683,-500.0,0.00015812,2]
[403309878,1769296240693,-516.50754003,0.00015812,2]
[403309880,1769296240703,-500.0,0.00015812,2]
[403309882,1769296240712,-500.0,0.00015812,2]
[403309884,1769296240721,-500.0,0.00015812,2]
[403309885,1769296240730,-500.0,0.00015812,2]
[403309888,1769296240739,-500.0,0.00015812,2]
[403309890,1769296240748,-500.0,0.00015812,2]
[403309892,1769296240757,-412.79957188,0.00015812,2]
[403309894,1769296240766,-315.41474661,0.00015812,2]
[403309895,1769296240775,-151.0,0.00015817,2]
[403309897,1769296240784,-500.0,0.00015913,2]
[403309899,1769296240793,-500.0,0.00015913,2]
[403309902,1769296240803,-502.69034994,0.00015913,2]
[403309903,1769296240812,-500.0,0.00015913,2]
[403309906,1769296240821,-500.0,0.00015913,2]
[403309908,1769296240830,-500.0,0.00015913,2]
[403309910,1769296240839,-500.0,0.00015913,2]
[403309912,1769296240849,-1136.87531636,0.00015948,2]
[403309914,1769296240858,-1082.2388578,0.0001596,2]
[403309915,1769296240867,-166.66,0.00015981,2]
[403309918,1769296240876,-301.0,0.00015994,2]
[403309919,1769296240885,-977.0,0.00016026,2]
[403309922,1769296240895,-1363.0,0.00016058,2]
[403309924,1769296240904,-304.94,0.00016078,2]
[403309926,1769296240914,-500.0,0.00016086,2]
[403309927,1769296240922,-1332.0,0.0001609,2]
[403309929,1769296240931,-1844.0,0.00016122,2]
[403309931,1769296240940,-979.0,0.00016131,2]
[403309934,1769296240950,-1761.0,0.00016154,2]
[403309936,1769296240960,-1988.0,0.00016163,2]
[403309938,1769296240969,-306.0,0.00016185,2]
[403309940,1769296240979,-1136.87531636,0.00016192,2]
[403309942,1769296240988,-731.0,0.00016196,2]
[403309944,1769296240997,-797.0,0.00016228,2]
[403309945,1769296241006,-195.0,0.0001626,2]
[403309948,1769296241015,-405.51,0.00016261,2]
[403309950,1769296241025,-166.66,0.00016291,2]
[403309951,1769296241034,-1006.0,0.00016292,2]
[403309953,1769296241043,-183.68126452,0.00016302,2]
[403309955,1769296241052,-200.0,0.00016309,2]
[403309957,1769296241062,-1229.0,0.00016324,2]
[403309959,1769296241071,-500.0,0.00016352,2]
[403309961,1769296241080,-304.94,0.00016352,2]
[403309963,1769296241089,-1000.0,0.00016365,2]
[403309966,1769296241105,-1136.87531636,0.00016436,2]
[403309968,1769296241116,-282.32827591,0.00016438,2]
[403309969,1769296241125,-1237.0,0.00016529,2]
[403309971,1769296241136,-500.0,0.00016556,2]
[403309974,1769296241145,-2134.28,0.00016583,2]
[403309976,1769296241155,-39516.67,0.0001659,2]
[403309977,1769296241165,-150.0,0.00016625,2]
[403309980,1769296241175,-304.94,0.00016626,2]
[403309982,1769296241184,-1136.87531636,0.0001668,2]
[403309984,1769296241193,-199.757061,0.00016803,2]
[403309985,1769296241202,-304.96,0.000169,2]
[403309988,1769296241211,-1136.87531636,0.00016924,2]
[403309989,1769296241220,-250.0,0.00017,2]
[403309992,1769296241229,-1780.58246827,0.00017099,2]
[403309994,1769296241239,-649.36910503,0.00017099,2]
[403309996,1769296241248,-761.21114176,0.00017099,2]
[403309997,1769296241258,-151.0,0.00017099,2]
[403310000,1769296241267,-151.0,0.00017099,2]
[403310002,1769296241276,-151.0,0.00017099,2]
[403310003,1769296241286,-151.0,0.00017099,2]
[403310006,1769296241295,-151.0,0.00017099,2]
[403310007,1769296241304,-151.0,0.00017099,2]
[403310009,1769296241313,-151.0,0.00017099,2]
[403310012,1769296241322,-151.0,0.00017099,2]
[403310014,1769296241332,-151.0,0.00017099,2]
[403310016,1769296241341,-151.0,0.00017099,2]
[403310018,1769296241350,-151.0,0.00017099,2]
[403310019,1769296241360,-1136.87531636,0.00017168,2]
[403310022,1769296241370,-484.73776318,0.00017302,2]
[403310024,1769296241380,-855.13487205,0.00017302,2]
[403310026,1769296241390,-1279.23062633,0.00017302,2]
[403310028,1769296241399,-1730.8368,0.00017302,2]
[403310030,1769296241409,-150.0,0.00017535,2]
[403310032,1769296241418,-500.0,0.00017535,2]
[403310034,1769296241428,-150.0,0.00017535,2]
[403310036,1769296241437,-150.0,0.00017535,2]
[403310038,1769296241446,-6568.0,0.00017589,2]
[403310040,1769296241455,-567.0,0.00017589,2]
[403310042,1769296241464,-2442.0,0.00017589,2]
[403310044,1769296241473,-150.0,0.0001759,2]
[403310046,1769296241482,-616.0,0.0001759,2]
[403310048,1769296241491,-150.0,0.0001759,2]
[403310050,1769296241500,-150.0,0.0001759,2]
[403310052,1769296241509,-150.0,0.00017645,2]
[403310054,1769296241518,-150.0,0.00017645,2]
[403310056,1769296241527,-150.0,0.00017645,2]
[403310058,1769296241536,-150.0,0.00017699,2]
[403310060,1769296241545,-150.0,0.00017699,2]
[403310062,1769296241554,-150.0,0.00017699,2]
[403310064,1769296241563,-150.0,0.00017754,2]
[403310066,1769296241572,-150.0,0.00017754,2]
[403310067,1769296241581,-150.0,0.00017754,2]
[403310070,1769296241591,-2500.0,0.000178,2]
[403310071,1769296241600,-250.0,0.00017809,2]
[403310074,1769296241610,-250.0,0.00017809,2]
[403310076,1769296241620,-250.0,0.00017809,2]
[403310077,1769296241629,-464.5182598,0.00017984,2]
[403310080,1769296241639,-7143.0054002,0.00017984,2]
[403310081,1769296241652,-1393.5547793,0.00017984,2]
[403310083,1769296241662,-160.475,0.00017999,2]
[403310085,1769296241671,-300.0,0.00017999,2]
[403310087,1769296241681,-500.0,0.00017999,2]
[403310089,1769296241690,-509.89335686,0.00017999,2]
[403310092,1769296241699,-500.0,0.00017999,2]
[403310093,1769296241708,-500.0,0.00017999,2]
[403310096,1769296241717,-300.0,0.00017999,2]
[403310097,1769296241731,-500.0,0.00017999,2]
[403310100,1769296241740,-596.95186764,0.00017999,2]
[403310102,1769296241749,-300.0,0.00017999,2]
[403310103,1769296241758,-500.0,0.00017999,2]
[403310106,1769296241767,-500.0,0.00017999,2]
[403310107,1769296241776,-500.0,0.00017999,2]
[403310110,1769296241785,-500.0,0.00017999,2]
[403310112,1769296241794,-500.0,0.00017999,2]
[403310114,1769296241803,-319.34433213,0.00017999,2]
[403310115,1769296241812,-500.0,0.00017999,2]
[403310117,1769296241822,-500.0,0.00017999,3]
[403310120,1769296241831,-496.56099917,0.00017999,4]
[403310122,1769296241840,-500.0,0.00017999,2]
[403310123,1769296241849,-500.0,0.00017999,2]
[403310125,1769296241859,-500.0,0.00017999,2]
[403310127,1769296241868,-500.0,0.00017999,2]
[403310129,1769296241877,-300.0,0.00017999,2]
[403310131,1769296241886,-500.0,0.00017999,2]
[403310133,1769296241895,-500.0,0.00017999,2]
[403310135,1769296241904,-500.0,0.00017999,2]
[403310137,1769296241913,-500.0,0.00017999,2]
[403310139,1769296241922,-723385.03132052,0.00018,2]
[403310142,1769296241936,-910.21948755,0.00018,2]
[403310144,1769296241947,-373.5581885,0.00018,2]
[403310146,1769296241958,-269.81641421,0.00018,2]
[403310270,1769296243054,-151.0,0.00015842,2]
[403310273,1769296243064,-1136.87531636,0.00017412,2]
[403310275,1769296243073,-753909.91133776,0.00018,2]
[403310288,1769296243191,-5090.4835921,0.00018,2]
[403310342,1769296243669,-673.3,0.00018,2]
[403310603,1769296246293,-978.06755915,0.00018,2]
[403310607,1769296246327,-889.950388,0.00018,2]
[403314444,1769296637610,1469.41652194,0.0001,2]
[403314445,1769296637635,372.30708443,0.0001,2]
[403314533,1769297135170,4727.53541213,0.0001,2]
[403314534,1769297159003,920.56505361,8e-05,2]
[403314612,1769297374254,-4429.48395319,0.00013,2]
[403314613,1769297374275,-245.2002985,0.00013097,2]
[403314648,1769297432004,-258.0,0.00013097,2]
[403314650,1769297432014,-250.0,0.00013097,2]
[403314652,1769297432024,-24.82685681,0.00013097,2]
[403314653,1769297432039,-275.17314319,0.00013097,2]
[403314654,1769297432049,-195.0,0.00013097,2]
[403314655,1769297432058,-158.36,0.00013097,2]
[403314656,1769297432068,-300.0,0.00013621,2]
[403314657,1769297432078,-300.0,0.00013621,2]
[403314658,1769297432087,-1200.0,0.00014405,2]
[403314659,1769297432097,-300.0,0.00014406,2]
[403314660,1769297432107,-955.31842561,0.00014407,2]
[403314661,1769297432116,-195.0,0.00014407,2]
[403314662,1769297432126,-250.0,0.00014407,2]
[403314663,1769297432136,-246.9380241,0.00014407,2]
[403314664,1769297432147,-53.0619759,0.00014407,2]